{"text_format":"1","workbook":"xlsx","n_sheets":3,"sheets":["작업일지","입력","참고"],"not_rendered":{"charts":0,"images":0,"macros":1,"external_links":0,"defined_names":5,"comments":0,"pivot_tables":0},"unopened":[],"bounds":{"document_bytes":16777216,"sheet_cells":100000,"rows_first":2000,"rows_last":500,"rows_between":2000,"halvings":0,"cell_chars":16384,"cell_head_chars":4096},"cells_cut":0,"cells_raw":0,"read":"whole","date_system":"1900"}

{"sheet":"작업일지","index":0,"n_rows":8,"n_cols":2,"rows_kept":8,"cut":false,"hidden":false,"merged":[]}
[161120,"최초 만듬"]
[]
[null,"입력된 실 자료를 불러내서 수정하는 기능"]
[161120,"교실 미선택시 오류 알림"]
[161121,"교실명에 숫자추가하여 정렬기능 추가"]
[161121,"메뉴명 순서를 양식에 맞춰 재배치"]
[161121,"변경된 부분에 색 표시 추가"]
[170612,"입력자료 이력조회 기능 추가"]

{"sheet":"입력","index":1,"n_rows":176,"n_cols":42,"rows_kept":176,"cut":false,"hidden":false,"merged":[]}
["저장시간","교실명","바닥재","도장(내벽)","천장재","외부창방식","재질","실내창","복도창방식","재질","출입문형태","재질","양변기","화변기","소변기","냉방","난방","겸용","LED","할로겐","형광등","방전등","기타","바닥재","내벽재","천장재","외부창","실내창","복도창","출입문","양변기","화변기","소변기","냉방기","난방기","겸용","LED","할로겐","형광등","방전등","기타등"]
["16-12-31  AM 10:49:13","1.교장실","목재후로링","기타","기타","단창","AL(알루미늄)",null,null,null,"여닫이","WD(목재)",0,0,0,null,null,null,56,0,0,0,0,false,false,false,false,false,false,false,false,false,false,false,false,false,false,false,false,false,false]
["16-12-31  AM 10:49:13","2.행정실","테라조타일","본타일","텍스","단창","AL(알루미늄)",null,null,null,"여닫이","WD(목재)",0,0,0,null,null,null,8,0,0,0,0,false,false,false,false,false,false,false,false,false,false,false,false,false,false,false,false,false,false]
["16-12-31  AM 10:49:13","3.행정 1층 복도","테라조타일","기타","기타",null,null,null,"단창","AL(알루미늄)","여닫이","기타",0,0,0,null,null,null,0,0,0,0,47,false,false,false,false,false,false,false,false,false,false,false,false,false,false,false,false,false,false]
["16-12-31  AM 10:49:13","4.행정 1층 화장실","타일","타일","SMC","단창","AL(알루미늄)",null,null,null,"여닫이","SSD(스테인리스)",0,2,2,null,null,null,0,0,0,0,3,false,false,false,false,false,false,false,false,false,false,false,false,false,false,false,false,false,false]
["16-12-31  AM 10:49:13","5.행정 1층 1/2","석재","본타일","노출천정","단창","AL(알루미늄)",null,null,null,null,null,0,0,0,null,null,null,0,0,0,0,1,false,false,false,false,false,false,false,false,false,false,false,false,false,false,false,false,false,false]
["16-12-31  AM 10:49:13","6.회의실","테라조타일","기타","텍스","단창","AL(알루미늄)",null,null,null,"여닫이","SSD(스테인리스)",0,0,0,null,null,null,0,0,10,0,0,false,false,false,false,false,false,false,false,false,false,false,false,false,false,false,false,false,false]
["16-12-31  AM 10:49:13","7.멀티실","액세스후로어","본타일","텍스","단창","AL(알루미늄)","PL(플라스틱)",null,null,"여닫이","WD(목재)",0,0,0,null,null,null,0,0,12,0,0,false,false,false,false,false,false,false,false,false,false,false,false,false,false,false,false,false,false]
["16-12-31  AM 10:49:13","8.진로활동실","액세스후로어","기타","텍스","단창","AL(알루미늄)","PL(플라스틱)",null,null,"여닫이","WD(목재)",0,0,0,null,null,null,0,0,4,0,0,false,false,false,false,false,false,false,false,false,false,false,false,false,false,false,false,false,false]
["16-12-31  AM 10:49:13","9.행정 2층 복도","테라조타일","본타일","텍스",null,null,null,"단창","AL(알루미늄)",null,null,0,0,0,null,null,null,0,0,6,0,0,false,false,false,false,false,false,false,false,false,false,false,false,false,false,false,false,false,false]
["16-12-31  AM 10:49:13","10.행정 2층 화장실","타일","타일","SMC","단창","AL(알루미늄)",null,null,null,"여닫이","SSD(스테인리스)",0,2,0,null,null,null,0,0,0,0,3,false,false,false,false,false,false,false,false,false,false,false,false,false,false,false,false,false,false]
["16-12-31  AM 10:49:13","11.행정 2층 2/3","석재","본타일","노출천정","단창","AL(알루미늄)",null,null,null,null,null,0,0,0,null,null,null,0,0,0,0,1,false,false,false,false,false,false,false,false,false,false,false,false,false,false,false,false,false,false]
["16-12-31  AM 10:49:13","12.아성반","테라조타일","본타일","텍스","단창","AL(알루미늄)",null,null,null,"여닫이","SSD(스테인리스)",0,0,0,null,null,null,62,0,0,0,0,false,false,false,false,false,false,false,false,false,false,false,false,false,false,false,false,false,false]
["16-12-31  AM 10:49:13","13.행정 3층 복도","테라조타일","본타일","텍스",null,null,null,"단창","AL(알루미늄)",null,null,0,0,0,null,null,null,0,0,0,0,2,false,false,false,false,false,false,false,false,false,false,false,false,false,false,false,false,false,false]
["16-12-31  AM 10:49:13","14.행정 3층 화장실","타일","타일","SMC","단창","AL(알루미늄)",null,null,null,"여닫이","SSD(스테인리스)",0,2,2,null,null,null,0,0,0,0,3,false,false,false,false,false,false,false,false,false,false,false,false,false,false,false,false,false,false]
["16-12-31  AM 10:49:13","15.행정 3층 3/옥상","석재","본타일","텍스","단창","AL(알루미늄)",null,null,null,null,null,0,0,0,null,null,null,0,0,3,0,0,false,false,false,false,false,false,false,false,false,false,false,false,false,false,false,false,false,false]
["16-12-31  AM 10:49:13","16.선수대기실","비닐계타일","수성페인트","텍스","단창","PL(플라스틱)",null,null,null,"여닫이","SSD(스테인리스)",0,0,0,null,null,null,0,0,2,0,0,false,false,false,false,false,false,false,false,false,false,false,false,false,false,false,false,false,false]
["16-12-31  AM 10:49:13","17.체육관","탄성후로어","수성페인트","노출천정","단창","PL(플라스틱)",null,null,null,"여닫이","SSD(스테인리스)",0,0,0,null,null,null,0,0,0,54,0,false,false,false,false,false,false,false,false,false,false,false,false,false,false,false,false,false,false]
["16-12-31  AM 10:49:13","18.2층 관람석","기타","수성페인트","노출천정","단창","PL(플라스틱)",null,null,null,"미닫이","기타",0,0,0,null,null,null,0,0,0,0,12,false,false,false,false,false,false,false,false,false,false,false,false,false,false,false,false,false,false]
["16-12-31  AM 10:49:13","19.감독실","테라조타일","기타","텍스",null,null,"PL(플라스틱)",null,null,"여닫이","SSD(스테인리스)",0,0,0,null,null,null,0,0,2,0,0,false,false,false,false,false,false,false,false,false,false,false,false,false,false,false,false,false,false]
["16-12-31  AM 10:49:13","20.씨름장","기타","수성페인트",null,"단창","PL(플라스틱)",null,null,null,"여닫이","SSD(스테인리스)",0,0,0,null,null,null,0,0,0,22,0,false,false,false,false,false,false,false,false,false,false,false,false,false,false,false,false,false,false]
["16-12-31  AM 10:49:13","21.샤워실","석재","타일","기타","단창","PL(플라스틱)",null,null,null,null,null,0,0,0,null,null,null,0,0,0,0,7,false,false,false,false,false,false,false,false,false,false,false,false,false,false,false,false,false,false]
["16-12-31  AM 10:49:13","22.씨름장 홀","테라조타일","수성페인트","텍스",null,null,null,null,null,"여닫이","기타",0,0,0,null,null,null,0,0,0,0,0,false,false,false,false,false,false,false,false,false,false,false,false,false,false,false,false,false,false]
["16-12-31  AM 10:49:13","23.씨름장 계단실","기타","수성페인트",null,null,null,null,null,null,null,null,0,0,0,null,null,null,0,0,0,0,0,false,false,false,false,false,false,false,false,false,false,false,false,false,false,false,false,false,false]
["16-12-31  AM 10:49:13","24.씨름장 화장실","타일","타일","텍스",null,null,null,null,null,"여닫이","SSD(스테인리스)",0,0,0,null,null,null,0,0,0,0,4,false,false,false,false,false,false,false,false,false,false,false,false,false,false,false,false,false,false]
["16-12-31  AM 10:49:13","25.씨름부 숙소","비닐계타일","벽지",null,"단창","PL(플라스틱)",null,null,null,"여닫이","WD(목재)",0,0,0,null,null,null,0,0,0,0,13,false,false,false,false,false,false,false,false,false,false,false,false,false,false,false,false,false,false]
["16-12-31  AM 10:49:13","26.생활체육실","테라조타일","수성페인트",null,"단창","PL(플라스틱)",null,null,null,"여닫이","SSD(스테인리스)",0,0,0,null,null,null,22,0,0,0,0,false,false,false,false,false,false,false,false,false,false,false,false,false,false,false,false,false,false]
["16-12-31  AM 10:49:13","27.수위실",null,null,null,null,null,null,null,null,null,null,0,0,0,null,null,null,0,0,0,0,0,false,false,false,false,false,false,false,false,false,false,false,false,false,false,false,false,false,false]
["16-12-31  AM 10:49:13","28.소강당","기타","흡음재","텍스","이중창","PL(플라스틱)",null,null,null,"여닫이","기타",0,0,0,null,null,null,0,0,0,0,24,false,false,false,false,false,false,false,false,false,false,false,false,false,false,false,false,false,false]
["16-12-31  AM 10:49:13","29.중 진로활동실","비닐계타일","기타","텍스","단창","PL(플라스틱)",null,null,null,"여닫이","기타",0,0,0,null,null,null,6,0,0,0,0,false,false,false,false,false,false,false,false,false,false,false,false,false,false,false,false,false,false]
["16-12-31  AM 10:49:13","30.중 가사실","비닐계타일","기타","텍스","단창","PL(플라스틱)",null,null,null,"여닫이","기타",0,0,0,null,null,null,8,0,0,0,0,false,false,false,false,false,false,false,false,false,false,false,false,false,false,false,false,false,false]
["16-12-31  AM 10:49:13","31.소강당 2층 복도","비닐계타일","기타","텍스",null,null,null,"단창","PL(플라스틱)","여닫이","기타",0,0,0,null,null,null,3,0,0,0,0,false,false,false,false,false,false,false,false,false,false,false,false,false,false,false,false,false,false]
["16-12-31  AM 10:49:13","32.중 멀티실","석재","벽지","텍스","단창","PL(플라스틱)","PL(플라스틱)",null,null,"여닫이","WD(목재)",0,0,0,null,null,null,0,0,12,0,0,false,false,false,false,false,false,false,false,false,false,false,false,false,false,false,false,false,false]
["16-12-31  AM 10:49:13","33.중 음악실","석재","기타","텍스","단창","PL(플라스틱)",null,null,null,"여닫이","기타",0,0,0,null,null,null,0,0,12,0,0,false,false,false,false,false,false,false,false,false,false,false,false,false,false,false,false,false,false]
["16-12-31  AM 10:49:13","34.소강당 3층 계단실","석재","수성페인트","노출천정","단창","기타",null,null,null,null,null,0,0,0,null,null,null,0,0,12,0,0,false,false,false,false,false,false,false,false,false,false,false,false,false,false,false,false,false,false]
["16-12-31  AM 10:49:13","35.사열대(운동장)",null,null,null,null,null,null,null,null,null,null,0,0,0,null,null,null,0,0,0,0,0,false,false,false,false,false,false,false,false,false,false,false,false,false,false,false,false,false,false]
["16-12-31  AM 10:49:13","36.문서창고",null,null,null,null,null,null,null,null,null,null,0,0,0,null,null,null,0,0,0,0,0,false,false,false,false,false,false,false,false,false,false,false,false,false,false,false,false,false,false]
["16-12-31  AM 10:49:13","37.공구창고",null,null,null,null,null,null,null,null,null,null,0,0,0,null,null,null,0,0,0,0,0,false,false,false,false,false,false,false,false,false,false,false,false,false,false,false,false,false,false]
["16-12-31  AM 10:49:13","38.비품창고",null,null,null,null,null,null,null,null,null,null,0,0,0,null,null,null,0,0,0,0,0,false,false,false,false,false,false,false,false,false,false,false,false,false,false,false,false,false,false]
["16-12-31  AM 10:49:13","39.월파도서관","석재","기타","텍스","단창","PL(플라스틱)",null,null,null,null,null,0,0,0,null,null,null,0,0,0,0,142,false,false,false,false,false,false,false,false,false,false,false,false,false,false,false,false,false,false]
["16-12-31  AM 10:49:13","40.도서관 1층 복도","석재","수성페인트","SMC",null,null,null,null,null,null,null,0,0,0,null,null,null,6,0,0,0,0,false,false,false,false,false,false,false,false,false,false,false,false,false,false,false,false,false,false]
["16-12-31  AM 10:49:13","41.장애인화장실(여)","타일","타일","SMC","단창","기타",null,null,null,"여닫이","WD(목재)",1,0,0,null,null,null,0,0,0,0,2,false,false,false,false,false,false,false,false,false,false,false,false,false,false,false,false,false,false]
["16-12-31  AM 10:49:13","42.장애인화장실(남)","타일","타일","SMC","단창","기타",null,null,null,"여닫이","WD(목재)",1,0,0,null,null,null,0,0,0,0,2,false,false,false,false,false,false,false,false,false,false,false,false,false,false,false,false,false,false]
["16-12-31  AM 10:49:13","43.도서관 1층 화장실(남)","타일","타일","SMC","단창","PL(플라스틱)",null,null,null,"미닫이","기타",0,2,4,null,null,null,0,0,0,0,7,false,false,false,false,false,false,false,false,false,false,false,false,false,false,false,false,false,false]
["16-12-31  AM 10:49:13","44.도서관 1층 화장실(여)","타일","타일","SMC","단창","PL(플라스틱)",null,null,null,"미닫이","기타",0,4,0,null,null,null,0,0,0,0,7,false,false,false,false,false,false,false,false,false,false,false,false,false,false,false,false,false,false]
["16-12-31  AM 10:49:13","45.도서관 1층 1/2","석재","수성페인트","노출천정","단창","AL(알루미늄)",null,null,null,null,null,0,0,0,null,null,null,0,0,0,0,1,false,false,false,false,false,false,false,false,false,false,false,false,false,false,false,false,false,false]
["16-12-31  AM 10:49:13","46.1학년 교무실","테라조타일","기타","텍스","단창","PL(플라스틱)","PL(플라스틱)",null,null,"미닫이","PD(플라스틱)",0,0,0,null,null,null,8,0,0,0,0,false,false,false,false,false,false,false,false,false,false,false,false,false,false,false,false,false,false]
["16-12-31  AM 10:49:13","47.1학년 1반","테라조타일","수성페인트","텍스","단창","PL(플라스틱)","PL(플라스틱)",null,null,"미닫이","PD(플라스틱)",0,0,0,null,null,null,11,0,0,0,0,false,false,false,false,false,false,false,false,false,false,false,false,false,false,false,false,false,false]
["16-12-31  AM 10:49:13","48.1학년 7반","테라조타일","수성페인트","텍스","단창","PL(플라스틱)","PL(플라스틱)",null,null,"미닫이","PD(플라스틱)",0,0,0,null,null,null,11,0,0,0,0,false,false,false,false,false,false,false,false,false,false,false,false,false,false,false,false,false,false]
["16-12-31  AM 10:49:13","49.도서관 2층 복도","테라조타일","수성페인트","텍스",null,null,null,null,null,null,null,0,0,0,null,null,null,11,0,0,0,0,false,false,false,false,false,false,false,false,false,false,false,false,false,false,false,false,false,false]
["16-12-31  AM 10:49:13","50.도서관 2층 화장실(여)","타일","타일","SMC","단창","PL(플라스틱)",null,null,null,"미닫이","기타",0,4,0,null,null,null,7,0,0,0,0,false,false,false,false,false,false,false,false,false,false,false,false,false,false,false,false,false,false]
["16-12-31  AM 10:49:13","51.도서관 2층 화장실(남)","타일","타일","SMC","단창","PL(플라스틱)",null,null,null,"미닫이","기타",0,2,4,null,null,null,7,0,0,0,0,false,false,false,false,false,false,false,false,false,false,false,false,false,false,false,false,false,false]
["16-12-31  AM 10:49:13","52.도서관 2층 2/3","석재","수성페인트","노출천정","단창","AL(알루미늄)",null,null,null,null,null,0,0,0,null,null,null,0,0,0,0,1,false,false,false,false,false,false,false,false,false,false,false,false,false,false,false,false,false,false]
["16-12-31  AM 10:49:13","53.1학년 4반","테라조타일","수성페인트","텍스","단창","PL(플라스틱)","PL(플라스틱)",null,null,"미닫이","PD(플라스틱)",0,0,0,null,null,null,11,0,0,0,0,false,false,false,false,false,false,false,false,false,false,false,false,false,false,false,false,false,false]
["16-12-31  AM 10:49:13","54.1학년 2반","테라조타일","수성페인트","텍스","단창","PL(플라스틱)","PL(플라스틱)",null,null,"미닫이","PD(플라스틱)",0,0,0,null,null,null,11,0,0,0,0,false,false,false,false,false,false,false,false,false,false,false,false,false,false,false,false,false,false]
["16-12-31  AM 10:49:13","55.1학년 3반","테라조타일","수성페인트","텍스","단창","PL(플라스틱)","PL(플라스틱)",null,null,"미닫이","PD(플라스틱)",0,0,0,null,null,null,11,0,0,0,0,false,false,false,false,false,false,false,false,false,false,false,false,false,false,false,false,false,false]
["16-12-31  AM 10:49:13","56.도서관 3층 복도","테라조타일","수성페인트","텍스","단창","PL(플라스틱)",null,null,null,null,null,0,0,0,null,null,null,13,0,0,0,0,false,false,false,false,false,false,false,false,false,false,false,false,false,false,false,false,false,false]
["16-12-31  AM 10:49:13","57.도서관 3층 화장실(여)","타일","타일","SMC","단창","PL(플라스틱)",null,null,null,"미닫이","기타",0,4,0,null,null,null,0,0,0,0,7,false,false,false,false,false,false,false,false,false,false,false,false,false,false,false,false,false,false]
["16-12-31  AM 10:49:13","58.도서관 3층 화장실(남)","타일","타일","SMC","단창","PL(플라스틱)",null,null,null,"미닫이","기타",0,2,4,null,null,null,0,0,0,0,7,false,false,false,false,false,false,false,false,false,false,false,false,false,false,false,false,false,false]
["16-12-31  AM 10:49:13","59.도서관 3층 3/4","석재","수성페인트","노출천정","단창","AL(알루미늄)",null,null,null,null,null,0,0,0,null,null,null,0,0,0,0,1,false,false,false,false,false,false,false,false,false,false,false,false,false,false,false,false,false,false]
["16-12-31  AM 10:49:13","60.1학년 5반","테라조타일","수성페인트","텍스","단창","PL(플라스틱)","PL(플라스틱)",null,null,"미닫이","PD(플라스틱)",0,0,0,null,null,null,11,0,0,0,0,false,false,false,false,false,false,false,false,false,false,false,false,false,false,false,false,false,false]
["16-12-31  AM 10:49:13","61.1학년 8반","테라조타일","수성페인트","텍스","단창","PL(플라스틱)","PL(플라스틱)",null,null,"미닫이","PD(플라스틱)",0,0,0,null,null,null,11,0,0,0,0,false,false,false,false,false,false,false,false,false,false,false,false,false,false,false,false,false,false]
["16-12-31  AM 10:49:13","62.1학년 6반","테라조타일","수성페인트","텍스","단창","PL(플라스틱)",null,null,null,"미닫이","PD(플라스틱)",0,0,0,null,null,null,11,0,0,0,0,false,false,false,false,false,false,false,false,false,false,false,false,false,false,false,false,false,false]
["16-12-31  AM 10:49:13","63.도서관 4층 복도","테라조타일","수성페인트","텍스",null,null,null,"단창","PL(플라스틱)",null,null,0,0,0,null,null,null,11,0,0,0,0,false,false,false,false,false,false,false,false,false,false,false,false,false,false,false,false,false,false]
["16-12-31  AM 10:49:13","64.도서관 4층 화장실(여)","타일","타일","SMC","단창","PL(플라스틱)",null,null,null,"미닫이","기타",0,4,0,null,null,null,0,0,0,0,7,false,false,false,false,false,false,false,false,false,false,false,false,false,false,false,false,false,false]
["16-12-31  AM 10:49:13","65.도서관 4층 화장실(남)","타일","타일","SMC","단창","PL(플라스틱)",null,null,null,"미닫이","기타",0,2,4,null,null,null,0,0,0,0,7,false,false,false,false,false,false,false,false,false,false,false,false,false,false,false,false,false,false]
["16-12-31  AM 10:49:13","66.도서관 4층 4/옥상","석재","수성페인트","텍스","단창","AL(알루미늄)",null,null,null,null,null,0,0,0,null,null,null,0,0,0,0,1,false,false,false,false,false,false,false,false,false,false,false,false,false,false,false,false,false,false]
["16-12-31  AM 10:49:13","67.조리실","타일","수성페인트","SMC","단창","PL(플라스틱)",null,null,null,"여닫이","기타",0,0,0,null,null,null,0,29,0,0,0,false,false,false,false,false,false,false,false,false,false,false,false,false,false,false,false,false,false]
["16-12-31  AM 10:49:13","68.급식실","석재","수성페인트","텍스","단창","PL(플라스틱)",null,null,null,"여닫이","기타",0,0,0,null,null,null,0,0,38,0,0,false,false,false,false,false,false,false,false,false,false,false,false,false,false,false,false,false,false]
["16-12-31  AM 10:49:13","69.식당 1층 1/2","고무계","수성페인트","노출천정","단창","PL(플라스틱)",null,null,null,"여닫이","기타",0,0,0,null,null,null,0,0,0,0,2,false,false,false,false,false,false,false,false,false,false,false,false,false,false,false,false,false,false]
["16-12-31  AM 10:49:13","70.식당 1층 복도","테라조타일","수성페인트","노출천정","단창","PL(플라스틱)",null,null,null,"여닫이","기타",0,0,0,null,null,null,0,0,0,0,0,false,false,false,false,false,false,false,false,false,false,false,false,false,false,false,false,false,false]
["16-12-31  AM 10:49:13","71.사감실","비닐계타일","수성페인트","텍스","이중창","PL(플라스틱)",null,null,null,"여닫이","WD(목재)",0,0,0,null,null,null,2,0,0,0,0,false,false,false,false,false,false,false,false,false,false,false,false,false,false,false,false,false,false]
["16-12-31  AM 10:49:13","72.201호","비닐계타일","벽지","텍스","이중창","PL(플라스틱)",null,null,null,"여닫이","WD(목재)",0,0,0,null,null,null,2,0,0,0,0,false,false,false,false,false,false,false,false,false,false,false,false,false,false,false,false,false,false]
["16-12-31  AM 10:49:13","73.202호","비닐계타일","벽지","텍스","이중창","PL(플라스틱)",null,null,null,"여닫이","WD(목재)",0,0,0,null,null,null,2,0,0,0,0,false,false,false,false,false,false,false,false,false,false,false,false,false,false,false,false,false,false]
["16-12-31  AM 10:49:13","74.203호","비닐계타일","벽지","텍스","이중창","PL(플라스틱)",null,null,null,"여닫이","WD(목재)",0,0,0,null,null,null,2,0,0,0,0,false,false,false,false,false,false,false,false,false,false,false,false,false,false,false,false,false,false]
["16-12-31  AM 10:49:13","75.204호","비닐계타일","벽지","텍스","이중창","PL(플라스틱)",null,null,null,"여닫이","WD(목재)",0,0,0,null,null,null,2,0,0,0,0,false,false,false,false,false,false,false,false,false,false,false,false,false,false,false,false,false,false]
["16-12-31  AM 10:49:13","76.205호","비닐계타일","벽지","텍스","이중창","PL(플라스틱)",null,null,null,"여닫이","WD(목재)",0,0,0,null,null,null,2,0,0,0,0,false,false,false,false,false,false,false,false,false,false,false,false,false,false,false,false,false,false]
["16-12-31  AM 10:49:13","77.206호","비닐계타일","벽지","텍스","이중창","PL(플라스틱)",null,null,null,"여닫이","WD(목재)",0,0,0,null,null,null,2,0,0,0,0,false,false,false,false,false,false,false,false,false,false,false,false,false,false,false,false,false,false]
["16-12-31  AM 10:49:13","78.207호","비닐계타일","벽지","텍스","이중창","PL(플라스틱)",null,null,null,"여닫이","WD(목재)",0,0,0,null,null,null,2,0,0,0,0,false,false,false,false,false,false,false,false,false,false,false,false,false,false,false,false,false,false]
["16-12-31  AM 10:49:13","79.208호","비닐계타일","벽지","텍스","이중창","PL(플라스틱)",null,null,null,"여닫이","WD(목재)",0,0,0,null,null,null,2,0,0,0,0,false,false,false,false,false,false,false,false,false,false,false,false,false,false,false,false,false,false]
["16-12-31  AM 10:49:13","80.209호","비닐계타일","벽지","텍스","이중창","PL(플라스틱)",null,null,null,"여닫이","WD(목재)",0,0,0,null,null,null,2,0,0,0,0,false,false,false,false,false,false,false,false,false,false,false,false,false,false,false,false,false,false]
["16-12-31  AM 10:49:13","81.식당 2층 화장실","타일","타일","텍스","단창","PL(플라스틱)",null,null,null,"여닫이","WD(목재)",6,0,5,null,null,null,7,0,0,0,0,false,false,false,false,false,false,false,false,false,false,false,false,false,false,false,false,false,false]
["16-12-31  AM 10:49:13","82.식당 2층 복도","비닐계타일","수성페인트","텍스","","",null,null,null,"여닫이","AD(알루미늄)",0,0,0,null,null,null,6,0,0,0,0,false,false,false,false,false,false,false,false,false,false,false,false,false,false,false,false,false,false]
["16-12-31  AM 10:49:13","83.식당 2층 2/3","고무계","수성페인트","노출천정","단창","PL(플라스틱)",null,null,null,"","",0,0,0,null,null,null,0,0,0,0,2,false,false,false,false,false,false,false,false,false,false,false,false,false,false,false,false,false,false]
["16-12-31  AM 10:49:13","84.301호","비닐계타일","벽지","텍스","이중창","PL(플라스틱)",null,null,null,"여닫이","WD(목재)",0,0,0,null,null,null,2,0,0,0,0,false,false,false,false,false,false,false,false,false,false,false,false,false,false,false,false,false,false]
["16-12-31  AM 10:49:13","85.302호","비닐계타일","벽지","텍스","이중창","PL(플라스틱)",null,null,null,"여닫이","WD(목재)",0,0,0,null,null,null,2,0,0,0,0,false,false,false,false,false,false,false,false,false,false,false,false,false,false,false,false,false,false]
["16-12-31  AM 10:49:13","86.303호","비닐계타일","벽지","텍스","이중창","PL(플라스틱)",null,null,null,"여닫이","WD(목재)",0,0,0,null,null,null,2,0,0,0,0,false,false,false,false,false,false,false,false,false,false,false,false,false,false,false,false,false,false]
["16-12-31  AM 10:49:13","87.304호","비닐계타일","벽지","텍스","이중창","PL(플라스틱)",null,null,null,"여닫이","WD(목재)",0,0,0,null,null,null,2,0,0,0,0,false,false,false,false,false,false,false,false,false,false,false,false,false,false,false,false,false,false]
["16-12-31  AM 10:49:13","88.305호","비닐계타일","벽지","텍스","이중창","PL(플라스틱)",null,null,null,"여닫이","WD(목재)",0,0,0,null,null,null,2,0,0,0,0,false,false,false,false,false,false,false,false,false,false,false,false,false,false,false,false,false,false]
["16-12-31  AM 10:49:13","89.306호","비닐계타일","벽지","텍스","이중창","PL(플라스틱)",null,null,null,"여닫이","WD(목재)",0,0,0,null,null,null,2,0,0,0,0,false,false,false,false,false,false,false,false,false,false,false,false,false,false,false,false,false,false]
["16-12-31  AM 10:49:13","90.307호","비닐계타일","벽지","텍스","이중창","PL(플라스틱)",null,null,null,"여닫이","WD(목재)",0,0,0,null,null,null,2,0,0,0,0,false,false,false,false,false,false,false,false,false,false,false,false,false,false,false,false,false,false]
["16-12-31  AM 10:49:13","91.308호","비닐계타일","벽지","텍스","이중창","PL(플라스틱)",null,null,null,"여닫이","WD(목재)",0,0,0,null,null,null,2,0,0,0,0,false,false,false,false,false,false,false,false,false,false,false,false,false,false,false,false,false,false]
["16-12-31  AM 10:49:13","92.309호","비닐계타일","벽지","텍스","이중창","PL(플라스틱)",null,null,null,"여닫이","WD(목재)",0,0,0,null,null,null,2,0,0,0,0,false,false,false,false,false,false,false,false,false,false,false,false,false,false,false,false,false,false]
["16-12-31  AM 10:49:13","93.310호","비닐계타일","벽지","텍스","이중창","PL(플라스틱)",null,null,null,"여닫이","WD(목재)",0,0,0,null,null,null,2,0,0,0,0,false,false,false,false,false,false,false,false,false,false,false,false,false,false,false,false,false,false]
["16-12-31  AM 10:49:13","94.식당 3층 화장실","타일","타일","텍스","단창","PL(플라스틱)",null,null,null,"여닫이","WD(목재)",6,0,4,null,null,null,7,0,0,0,0,false,false,false,false,false,false,false,false,false,false,false,false,false,false,false,false,false,false]
["16-12-31  AM 10:49:13","95.식당 3층 복도","비닐계타일","수성페인트","텍스","","",null,null,null,"여닫이","AD(알루미늄)",0,0,0,null,null,null,6,0,0,0,0,false,false,false,false,false,false,false,false,false,false,false,false,false,false,false,false,false,false]
["16-12-31  AM 10:49:13","96.식당 3층 3/옥상","고무계","수성페인트","노출천정","단창","PL(플라스틱)",null,null,null,null,null,0,0,0,null,null,null,0,0,0,0,2,false,false,false,false,false,false,false,false,false,false,false,false,false,false,false,false,false,false]
["16-12-31  AM 10:49:13","97.중 특수학급","비닐계타일","벽지","텍스","이중창","PL(플라스틱)",null,null,null,"미닫이","WD(목재)",0,0,0,null,null,null,0,0,6,0,0,false,false,false,false,false,false,false,false,false,false,false,false,false,false,false,false,false,false]
["16-12-31  AM 10:49:13","98.관리실","테라조타일","기타","텍스","단창","PL(플라스틱)",null,null,null,"여닫이","SSD(스테인리스)",0,0,0,null,null,null,0,0,4,0,0,false,false,false,false,false,false,false,false,false,false,false,false,false,false,false,false,false,false]
["16-12-31  AM 10:49:13","99.중 음악실","테라조타일","기타","텍스","단창","PL(플라스틱)",null,null,null,"여닫이","SSD(스테인리스)",0,0,0,null,null,null,0,0,12,0,0,false,false,false,false,false,false,false,false,false,false,false,false,false,false,false,false,false,false]
["16-12-31  AM 10:49:13","100.관리실 복도","테라조타일","기타","텍스","단창","PL(플라스틱)",null,null,null,"여닫이","기타",0,0,0,null,null,null,0,0,0,0,11,false,false,false,false,false,false,false,false,false,false,false,false,false,false,false,false,false,false]
["16-12-31  AM 10:49:13","101.수학실2","비닐계타일","기타","텍스","이중창","PL(플라스틱)","PL(플라스틱)","","","미닫이","PD(플라스틱)",0,0,0,null,null,null,0,0,11,0,0,false,false,false,false,false,false,false,false,false,false,false,false,false,false,false,false,false,false]
["16-12-31  AM 10:49:13","102.미술실","석재","기타","텍스","이중창","PL(플라스틱)","PL(플라스틱)","","","미닫이","PD(플라스틱)",0,0,0,null,null,null,0,0,11,0,0,false,false,false,false,false,false,false,false,false,false,false,false,false,false,false,false,false,false]
["16-12-31  AM 10:49:13","103.보건실","비닐계타일","수성페인트","텍스","이중창","PL(플라스틱)","","","","여닫이","WD(목재)",0,0,0,null,null,null,4,0,0,0,0,false,false,false,false,false,false,false,false,false,false,false,false,false,false,false,false,false,false]
["16-12-31  AM 10:49:13","104.위클래스실","목재후로링","벽지","텍스","이중창","PL(플라스틱)","","","","여닫이","WD(목재)",0,0,0,null,null,null,4,0,0,0,0,false,false,false,false,false,false,false,false,false,false,false,false,false,false,false,false,false,false]
["16-12-31  AM 10:49:13","105.수학실1","인조석(물갈기)","기타","텍스","이중창","PL(플라스틱)","PL(플라스틱)","","","미닫이","PD(플라스틱)",0,0,0,null,null,null,0,0,8,0,0,false,false,false,false,false,false,false,false,false,false,false,false,false,false,false,false,false,false]
["16-12-31  AM 10:49:13","106.영어실3","비닐계타일","기타","텍스","이중창","PL(플라스틱)","PL(플라스틱)","","","미닫이","PD(플라스틱)",0,0,0,null,null,null,0,0,8,0,0,false,false,false,false,false,false,false,false,false,false,false,false,false,false,false,false,false,false]
["16-12-31  AM 10:49:13","107.숙직실","비닐계타일","벽지","텍스","이중창","PL(플라스틱)","","","","여닫이","WD(목재)",0,0,0,null,null,null,0,0,1,0,0,false,false,false,false,false,false,false,false,false,false,false,false,false,false,false,false,false,false]
["16-12-31  AM 10:49:13","108.후관 1층 복도","테라조타일","기타","텍스","","","","단창","PL(플라스틱)","","",0,0,0,null,null,null,18,0,0,0,0,false,false,false,false,false,false,false,false,false,false,false,false,false,false,false,false,false,false]
["16-12-31  AM 10:49:13","109.후관 1층 1/2","인조석(물갈기)","수성페인트","노출천정","단창","기타","","","","","",0,0,0,null,null,null,0,0,0,0,0,false,false,false,false,false,false,false,false,false,false,false,false,false,false,false,false,false,false]
["16-12-31  AM 10:49:13","110.후관 1층 화장실(남)","타일","타일","SMC","단창","기타","","","","미닫이","기타",1,3,6,null,null,null,0,0,0,0,13,false,false,false,false,false,false,false,false,false,false,false,false,false,false,false,false,false,false]
["16-12-31  AM 10:49:13","111.후관 1층 화장실(여)","타일","타일","SMC","단창","PL(플라스틱)","","","","미닫이","기타",1,5,0,null,null,null,0,0,0,0,15,false,false,false,false,false,false,false,false,false,false,false,false,false,false,false,false,false,false]
["16-12-31  AM 10:49:13","112.후관 1층 화장실(여)2","타일","타일","SMC","단창","PL(플라스틱)","","","","미닫이","PD(플라스틱)",0,8,0,null,null,null,0,0,0,0,9,false,false,false,false,false,false,false,false,false,false,false,false,false,false,false,false,false,false]
["16-12-31  AM 10:49:13","113.3학년 10반","인조석(물갈기)","수성페인트","텍스","이중창","PL(플라스틱)","PL(플라스틱)","","","미닫이","PD(플라스틱)",0,0,0,null,null,null,11,0,0,0,0,false,false,false,false,false,false,false,false,false,false,false,false,false,false,false,false,false,false]
["16-12-31  AM 10:49:13","114.3학년 9반","석재","기타","텍스","이중창","PL(플라스틱)","PL(플라스틱)","","","미닫이","PD(플라스틱)",0,0,0,null,null,null,11,0,0,0,0,false,false,false,false,false,false,false,false,false,false,false,false,false,false,false,false,false,false]
["16-12-31  AM 10:49:13","115.3학년 8반","석재","기타","텍스","이중창","PL(플라스틱)","PL(플라스틱)","","","미닫이","PD(플라스틱)",0,0,0,null,null,null,11,0,0,0,0,false,false,false,false,false,false,false,false,false,false,false,false,false,false,false,false,false,false]
["16-12-31  AM 10:49:13","116.3학년 7반","석재","기타","텍스","이중창","PL(플라스틱)","PL(플라스틱)","","","미닫이","PD(플라스틱)",0,0,0,null,null,null,11,0,0,0,0,false,false,false,false,false,false,false,false,false,false,false,false,false,false,false,false,false,false]
["16-12-31  AM 10:49:13","117.3학년 6반","석재","기타","텍스","이중창","PL(플라스틱)","PL(플라스틱)","","","미닫이","PD(플라스틱)",0,0,0,null,null,null,11,0,0,0,0,false,false,false,false,false,false,false,false,false,false,false,false,false,false,false,false,false,false]
["16-12-31  AM 10:49:13","118.수학실3","타일","기타","텍스","이중창","PL(플라스틱)","PL(플라스틱)","","","미닫이","PD(플라스틱)",0,0,0,null,null,null,11,0,0,0,0,false,false,false,false,false,false,false,false,false,false,false,false,false,false,false,false,false,false]
["16-12-31  AM 10:49:13","119.입시관리부","비닐계타일","기타","텍스","이중창","PL(플라스틱)","","","","여닫이","WD(목재)",0,0,0,null,null,null,0,0,2,0,0,false,false,false,false,false,false,false,false,false,false,false,false,false,false,false,false,false,false]
["16-12-31  AM 10:49:13","120.후관 2층 복도","인조석(물갈기)","수성페인트","텍스","","",null,"단창","PL(플라스틱)","여닫이","SSD(스테인리스)",0,0,0,null,null,null,13,0,0,0,0,false,false,false,false,false,false,false,false,false,false,false,false,false,false,false,false,false,false]
["16-12-31  AM 10:49:13","121.후관 2층 2/옥상","인조석(물갈기)","수성페인트","노출천정","단창","기타",null,null,null,"","",0,0,0,null,null,null,0,0,0,0,0,false,false,false,false,false,false,false,false,false,false,false,false,false,false,false,false,false,false]
["16-12-31  AM 10:49:13","122.후관 2층 화장실(남)","타일","타일","SMC","단창","PL(플라스틱)",null,null,null,"미닫이","기타",4,0,6,null,null,null,0,0,0,0,14,false,false,false,false,false,false,false,false,false,false,false,false,false,false,false,false,false,false]
["16-12-31  AM 10:49:13","123.후관 2층 화장실(여)","타일","타일","SMC","단창","PL(플라스틱)",null,null,null,"미닫이","기타",6,0,0,null,null,null,0,0,0,0,14,false,false,false,false,false,false,false,false,false,false,false,false,false,false,false,false,false,false]
["16-12-31  AM 10:49:13","124.후관 2층 화장실(여)2","타일","타일","SMC","단창","PL(플라스틱)",null,null,null,"미닫이","기타",6,0,0,null,null,null,0,0,0,0,14,false,false,false,false,false,false,false,false,false,false,false,false,false,false,false,false,false,false]
["16-12-31  AM 10:49:13","125.인쇄실",null,null,null,null,null,null,null,null,null,null,0,0,0,null,null,null,0,0,0,0,0,false,false,false,false,false,false,false,false,false,false,false,false,false,false,false,false,false,false]
["16-12-31  AM 10:49:13","126.미술도구준비실",null,null,null,null,null,null,null,null,null,null,0,0,0,null,null,null,0,0,0,0,0,false,false,false,false,false,false,false,false,false,false,false,false,false,false,false,false,false,false]
["16-12-31  AM 10:49:13","127.남학생월파반","비닐계타일","기타","텍스","이중창","PL(플라스틱)","PL(플라스틱)","","","여닫이","WD(목재)",0,0,0,null,null,null,38,0,0,0,0,false,false,false,false,false,false,false,false,false,false,false,false,false,false,false,false,false,false]
["16-12-31  AM 10:49:13","128.별관 1층 복도","테라조타일","수성페인트","텍스","","","","","","여닫이","기타",0,0,0,null,null,null,0,0,0,0,1,false,false,false,false,false,false,false,false,false,false,false,false,false,false,false,false,false,false]
["16-12-31  AM 10:49:13","129.별관 1층 1/2","고무계","수성페인트","텍스","단창","기타","","","","","",0,0,0,null,null,null,0,0,0,0,0,false,false,false,false,false,false,false,false,false,false,false,false,false,false,false,false,false,false]
["16-12-31  AM 10:49:13","130.3학년 교무실","인조석(물갈기)","기타","텍스","이중창","PL(플라스틱)","PL(플라스틱)","","","미닫이","PD(플라스틱)",0,0,0,null,null,null,8,0,0,0,0,false,false,false,false,false,false,false,false,false,false,false,false,false,false,false,false,false,false]
["16-12-31  AM 10:49:13","131.3학년 2반","인조석(물갈기)","기타","텍스","이중창","PL(플라스틱)","PL(플라스틱)","","","미닫이","PD(플라스틱)",0,0,0,null,null,null,11,0,0,0,0,false,false,false,false,false,false,false,false,false,false,false,false,false,false,false,false,false,false]
["16-12-31  AM 10:49:13","132.3학년 1반","인조석(물갈기)","기타","텍스","이중창","PL(플라스틱)","PL(플라스틱)","","","미닫이","PD(플라스틱)",0,0,0,null,null,null,11,0,0,0,0,false,false,false,false,false,false,false,false,false,false,false,false,false,false,false,false,false,false]
["16-12-31  AM 10:49:13","133.별관 2층 복도","인조석(물갈기)","수성페인트","텍스","","","","단창","PL(플라스틱)","여닫이","SSD(스테인리스)",0,0,0,null,null,null,7,0,0,0,0,false,false,false,false,false,false,false,false,false,false,false,false,false,false,false,false,false,false]
["16-12-31  AM 10:49:13","134.별관 2층 2/3","고무계","수성페인트","텍스","단창","PL(플라스틱)","","","","","",0,0,0,null,null,null,0,0,0,0,1,false,false,false,false,false,false,false,false,false,false,false,false,false,false,false,false,false,false]
["16-12-31  AM 10:49:13","135.3학년 5반","석재","기타","텍스","이중창","PL(플라스틱)","PL(플라스틱)","","","미닫이","PD(플라스틱)",0,0,0,null,null,null,15,0,0,0,0,false,false,false,false,false,false,false,false,false,false,false,false,false,false,false,false,false,false]
["16-12-31  AM 10:49:13","136.3학년 4반","석재","기타","텍스","이중창","PL(플라스틱)","PL(플라스틱)","","","미닫이","PD(플라스틱)",0,0,0,null,null,null,15,0,0,0,0,false,false,false,false,false,false,false,false,false,false,false,false,false,false,false,false,false,false]
["16-12-31  AM 10:49:13","137.3학년 3반","석재","기타","텍스","단창","PL(플라스틱)","PL(플라스틱)","","","여닫이","PD(플라스틱)",0,0,0,null,null,null,15,0,0,0,0,false,false,false,false,false,false,false,false,false,false,false,false,false,false,false,false,false,false]
["16-12-31  AM 10:49:13","138.별관 3층 복도","인조석(물갈기)","수성페인트","텍스","","",null,"단창","PL(플라스틱)","여닫이","SSD(스테인리스)",0,0,0,null,null,null,3,0,0,0,0,false,false,false,false,false,false,false,false,false,false,false,false,false,false,false,false,false,false]
["16-12-31  AM 10:49:13","139.방송실",null,null,null,null,null,null,null,null,null,null,0,0,0,null,null,null,0,0,0,0,0,false,false,false,false,false,false,false,false,false,false,false,false,false,false,false,false,false,false]
["16-12-31  AM 10:49:13","140.본교무실","테라조타일","본타일","텍스","단창","PL(플라스틱)","PL(플라스틱)",null,null,"미닫이","PD(플라스틱)",0,0,0,null,null,null,16,0,0,0,0,false,false,false,false,false,false,false,false,false,false,false,false,false,false,false,false,false,false]
["16-12-31  AM 10:49:13","141.1학년 10반","테라조타일","본타일","텍스","단창","PL(플라스틱)","PL(플라스틱)",null,null,"미닫이","PD(플라스틱)",0,0,0,null,null,null,13,0,0,0,0,false,false,false,false,false,false,false,false,false,false,false,false,false,false,false,false,false,false]
["16-12-31  AM 10:49:13","142.1학년 9반","테라조타일","본타일","텍스","단창","PL(플라스틱)","PL(플라스틱)",null,null,"미닫이","PD(플라스틱)",0,0,0,null,null,null,111,0,0,0,0,false,false,false,false,false,false,false,false,false,false,false,false,false,false,false,false,false,false]
["16-12-31  AM 10:49:13","143.과학실1(화학)","테라조타일","본타일","텍스","단창","PL(플라스틱)","PL(플라스틱)",null,null,"미닫이","PD(플라스틱)",0,0,0,null,null,null,13,0,0,0,0,false,false,false,false,false,false,false,false,false,false,false,false,false,false,false,false,false,false]
["16-12-31  AM 10:49:13","144.본관 1층 복도","테라조타일","수성페인트","텍스","","",null,"단창","PL(플라스틱)","","",0,0,0,null,null,null,10,0,0,0,0,false,false,false,false,false,false,false,false,false,false,false,false,false,false,false,false,false,false]
["16-12-31  AM 10:49:13","145.본관 1층 1/2","석재","수성페인트","노출천정","단창","AL(알루미늄)",null,null,null,"","",0,0,0,null,null,null,2,0,0,0,0,false,false,false,false,false,false,false,false,false,false,false,false,false,false,false,false,false,false]
["16-12-31  AM 10:49:13","146.본관 1층 화장실(여)","타일","타일","SMC","단창","PL(플라스틱)",null,null,null,"미닫이","PD(플라스틱)",0,6,0,null,null,null,0,0,0,0,9,false,false,false,false,false,false,false,false,false,false,false,false,false,false,false,false,false,false]
["16-12-31  AM 10:49:13","147.보관 1층 화장실(남)","타일","타일","SMC","단창","PL(플라스틱)",null,null,null,"미닫이","PD(플라스틱)",0,3,6,null,null,null,0,0,0,0,9,false,false,false,false,false,false,false,false,false,false,false,false,false,false,false,false,false,false]
["16-12-31  AM 10:49:13","148.2학년 8반","테라조타일","본타일","텍스","단창","PL(플라스틱)","PL(플라스틱)",null,null,"미닫이","PD(플라스틱)",0,0,0,null,null,null,11,0,0,0,0,false,false,false,false,false,false,false,false,false,false,false,false,false,false,false,false,false,false]
["16-12-31  AM 10:49:13","149.2학년 9반","테라조타일","본타일","텍스","단창","PL(플라스틱)","PL(플라스틱)",null,null,"미닫이","PD(플라스틱)",0,0,0,null,null,null,11,0,0,0,0,false,false,false,false,false,false,false,false,false,false,false,false,false,false,false,false,false,false]
["16-12-31  AM 10:49:13","150.2학년 10반","테라조타일","본타일","텍스","단창","PL(플라스틱)","PL(플라스틱)",null,null,"미닫이","PD(플라스틱)",0,0,0,null,null,null,11,0,0,0,0,false,false,false,false,false,false,false,false,false,false,false,false,false,false,false,false,false,false]
["16-12-31  AM 10:49:13","151.영어실2","테라조타일","기타","텍스","단창","PL(플라스틱)","PL(플라스틱)",null,null,"미닫이","PD(플라스틱)",0,0,0,null,null,null,11,0,0,0,0,false,false,false,false,false,false,false,false,false,false,false,false,false,false,false,false,false,false]
["16-12-31  AM 10:49:13","152.과학실2(물리/지구)","테라조타일","본타일","텍스","단창","PL(플라스틱)","PL(플라스틱)",null,null,"미닫이","PD(플라스틱)",0,0,0,null,null,null,13,0,0,0,0,false,false,false,false,false,false,false,false,false,false,false,false,false,false,false,false,false,false]
["16-12-31  AM 10:49:13","153.본관 2층 복도","테라조타일","수성페인트","텍스","","",null,"단창","PL(플라스틱)","","",0,0,0,null,null,null,10,0,0,0,0,false,false,false,false,false,false,false,false,false,false,false,false,false,false,false,false,false,false]
["16-12-31  AM 10:49:13","154.본관 2층 2/3","석재","수성페인트","노출천정","단창","AL(알루미늄)",null,null,null,"","",0,0,0,null,null,null,2,0,0,0,0,false,false,false,false,false,false,false,false,false,false,false,false,false,false,false,false,false,false]
["16-12-31  AM 10:49:13","155.본관 2층 화장실(여)","타일","타일","SMC","단창","PL(플라스틱)",null,null,null,"미닫이","PD(플라스틱)",0,6,0,null,null,null,0,0,0,0,9,false,false,false,false,false,false,false,false,false,false,false,false,false,false,false,false,false,false]
["16-12-31  AM 10:49:13","156.본관 2층 화장실(남)","타일","타일","SMC","단창","PL(플라스틱)",null,null,null,"미닫이","PD(플라스틱)",0,3,6,null,null,null,0,0,0,0,9,false,false,false,false,false,false,false,false,false,false,false,false,false,false,false,false,false,false]
["16-12-31  AM 10:49:13","157.2학년 7반","테라조타일","본타일","텍스","단창","PL(플라스틱)","PL(플라스틱)",null,null,"미닫이","PD(플라스틱)",0,0,0,null,null,null,11,0,0,0,0,false,false,false,false,false,false,false,false,false,false,false,false,false,false,false,false,false,false]
["16-12-31  AM 10:49:13","158.2학년 6반","테라조타일","본타일","텍스","단창","PL(플라스틱)","PL(플라스틱)",null,null,"미닫이","PD(플라스틱)",0,0,0,null,null,null,11,0,0,0,0,false,false,false,false,false,false,false,false,false,false,false,false,false,false,false,false,false,false]
["16-12-31  AM 10:49:13","159.2학년 5반","테라조타일","본타일","텍스","단창","PL(플라스틱)","PL(플라스틱)",null,null,"미닫이","PD(플라스틱)",0,0,0,null,null,null,11,0,0,0,0,false,false,false,false,false,false,false,false,false,false,false,false,false,false,false,false,false,false]
["16-12-31  AM 10:49:13","160.2학년 4반","테라조타일","본타일","텍스","단창","PL(플라스틱)","PL(플라스틱)",null,null,"미닫이","PD(플라스틱)",0,0,0,null,null,null,11,0,0,0,0,false,false,false,false,false,false,false,false,false,false,false,false,false,false,false,false,false,false]
["16-12-31  AM 10:49:13","161.과학실3(생물)","테라조타일","본타일","텍스","단창","PL(플라스틱)",null,null,null,"미닫이","PD(플라스틱)",0,0,0,null,null,null,13,0,0,0,0,false,false,false,false,false,false,false,false,false,false,false,false,false,false,false,false,false,false]
["16-12-31  AM 10:49:13","162.본관 3층 복도","테라조타일","수성페인트","텍스","","",null,"단창","PL(플라스틱)","","",0,0,0,null,null,null,10,0,0,0,0,false,false,false,false,false,false,false,false,false,false,false,false,false,false,false,false,false,false]
["16-12-31  AM 10:49:13","163.본관 3층 3/4","석재","수성페인트","노출천정","단창","AL(알루미늄)",null,null,null,"","",0,0,0,null,null,null,2,0,0,0,0,false,false,false,false,false,false,false,false,false,false,false,false,false,false,false,false,false,false]
["16-12-31  AM 10:49:13","164.본관 3층 화장실(여)","타일","타일","SMC","단창","PL(플라스틱)",null,null,null,"미닫이","PD(플라스틱)",0,6,0,null,null,null,0,0,0,0,9,false,false,false,false,false,false,false,false,false,false,false,false,false,false,false,false,false,false]
["16-12-31  AM 10:49:13","165.본관 3층 화장실(남)","타일","타일","SMC","단창","PL(플라스틱)",null,null,null,"미닫이","PD(플라스틱)",0,3,6,null,null,null,0,0,0,0,9,false,false,false,false,false,false,false,false,false,false,false,false,false,false,false,false,false,false]
["16-12-31  AM 10:49:13","166.2학년 교무실","테라조타일","본타일","텍스","단창","PL(플라스틱)","PL(플라스틱)",null,null,"미닫이","PD(플라스틱)",0,0,0,null,null,null,11,0,0,0,0,false,false,false,false,false,false,false,false,false,false,false,false,false,false,false,false,false,false]
["16-12-31  AM 10:49:13","167.2학년 1반","테라조타일","본타일","텍스","단창","PL(플라스틱)","PL(플라스틱)",null,null,"미닫이","PD(플라스틱)",0,0,0,null,null,null,11,0,0,0,0,false,false,false,false,false,false,false,false,false,false,false,false,false,false,false,false,false,false]
["16-12-31  AM 10:49:13","168.2학년 2반","테라조타일","본타일","텍스","단창","PL(플라스틱)","PL(플라스틱)",null,null,"미닫이","PD(플라스틱)",0,0,0,null,null,null,11,0,0,0,0,false,false,false,false,false,false,false,false,false,false,false,false,false,false,false,false,false,false]
["16-12-31  AM 10:49:13","169.2학년 3반","테라조타일","본타일","텍스","단창","PL(플라스틱)","PL(플라스틱)",null,null,"미닫이","PD(플라스틱)",0,0,0,null,null,null,11,0,0,0,0,false,false,false,false,false,false,false,false,false,false,false,false,false,false,false,false,false,false]
["16-12-31  AM 10:49:13","170.영어실1","테라조타일","기타","텍스","단창","PL(플라스틱)",null,null,null,"미닫이","PD(플라스틱)",0,0,0,null,null,null,13,0,0,0,0,false,false,false,false,false,false,false,false,false,false,false,false,false,false,false,false,false,false]
["16-12-31  AM 10:49:13","171.본관 4층 복도","테라조타일","수성페인트","텍스","","",null,"단창","PL(플라스틱)","","",0,0,0,null,null,null,10,0,0,0,0,false,false,false,false,false,false,false,false,false,false,false,false,false,false,false,false,false,false]
["16-12-31  AM 10:49:13","172.본관 4층 4/옥상","석재","수성페인트","노출천정","단창","AL(알루미늄)",null,null,null,"여닫이","기타",0,0,0,null,null,null,2,0,0,0,0,false,false,false,false,false,false,false,false,false,false,false,false,false,false,false,false,false,false]
["16-12-31  AM 10:49:13","173.본관 4층 화장실(여)","타일","타일","SMC","단창","PL(플라스틱)",null,null,null,"미닫이","PD(플라스틱)",0,6,0,null,null,null,0,0,0,0,9,false,false,false,false,false,false,false,false,false,false,false,false,false,false,false,false,false,false]
["16-12-31  AM 10:49:13","174.본관 4층 화장실(남)","타일","타일","SMC","단창","PL(플라스틱)",null,null,null,"미닫이","PD(플라스틱)",0,3,6,null,null,null,0,0,0,0,9,false,false,false,false,false,false,false,false,false,false,false,false,false,false,false,false,false,false]
["17-06-12  PM 3:37:17","142.1학년 9반","테라조타일","본타일","텍스","단창","PL(플라스틱)","PL(플라스틱)",null,null,"미닫이","PD(플라스틱)",0,0,0,null,null,null,11,0,0,0,0,false,false,false,false,false,false,false,false,false,false,false,false,false,true,false,false,false,false,"LED 자료 정정하기"]

{"sheet":"참고","index":2,"n_rows":186,"n_cols":5,"rows_kept":186,"cut":false,"hidden":false,"merged":[]}
["1.교장실","단창","미닫이","메모",{"$f":"VLOOKUP(A1,입력!B:B,1,FALSE)","v":"1.교장실"}]
["2.행정실","이중창","여닫이","목록에 없거나 한번더 확인이 필요할 경우 옆에 체크박스를 눌러 저장하세요",{"$f":"VLOOKUP(A2,입력!B:B,1,FALSE)","v":"2.행정실"}]
["3.행정 1층 복도",null,null,null,{"$f":"VLOOKUP(A3,입력!B:B,1,FALSE)","v":"3.행정 1층 복도"}]
["4.행정 1층 화장실",null,null,null,{"$f":"VLOOKUP(A4,입력!B:B,1,FALSE)","v":"4.행정 1층 화장실"}]
["5.행정 1층 1/2",null,null,null,{"$f":"VLOOKUP(A5,입력!B:B,1,FALSE)","v":"5.행정 1층 1/2"}]
["6.회의실",null,null,null,{"$f":"VLOOKUP(A6,입력!B:B,1,FALSE)","v":"6.회의실"}]
["7.멀티실",null,null,null,{"$f":"VLOOKUP(A7,입력!B:B,1,FALSE)","v":"7.멀티실"}]
["8.진로활동실",null,null,null,{"$f":"VLOOKUP(A8,입력!B:B,1,FALSE)","v":"8.진로활동실"}]
["9.행정 2층 복도",null,null,null,{"$f":"VLOOKUP(A9,입력!B:B,1,FALSE)","v":"9.행정 2층 복도"}]
["10.행정 2층 화장실",null,null,null,{"$f":"VLOOKUP(A10,입력!B:B,1,FALSE)","v":"10.행정 2층 화장실"}]
["11.행정 2층 2/3",null,null,null,{"$f":"VLOOKUP(A11,입력!B:B,1,FALSE)","v":"11.행정 2층 2/3"}]
["12.아성반",null,null,null,{"$f":"VLOOKUP(A12,입력!B:B,1,FALSE)","v":"12.아성반"}]
["13.행정 3층 복도",null,null,null,{"$f":"VLOOKUP(A13,입력!B:B,1,FALSE)","v":"13.행정 3층 복도"}]
["14.행정 3층 화장실",null,null,null,{"$f":"VLOOKUP(A14,입력!B:B,1,FALSE)","v":"14.행정 3층 화장실"}]
["15.행정 3층 3/옥상",null,null,null,{"$f":"VLOOKUP(A15,입력!B:B,1,FALSE)","v":"15.행정 3층 3/옥상"}]
["▶▶체육관동"]
["16.선수대기실",null,null,null,{"$f":"VLOOKUP(A17,입력!B:B,1,FALSE)","v":"16.선수대기실"}]
["17.체육관",null,null,null,{"$f":"VLOOKUP(A18,입력!B:B,1,FALSE)","v":"17.체육관"}]
["18.2층 관람석",null,null,null,{"$f":"VLOOKUP(A19,입력!B:B,1,FALSE)","v":"18.2층 관람석"}]
["▶▶씨름장동"]
["19.감독실",null,null,null,{"$f":"VLOOKUP(A21,입력!B:B,1,FALSE)","v":"19.감독실"}]
["20.씨름장",null,null,null,{"$f":"VLOOKUP(A22,입력!B:B,1,FALSE)","v":"20.씨름장"}]
["21.샤워실",null,null,null,{"$f":"VLOOKUP(A23,입력!B:B,1,FALSE)","v":"21.샤워실"}]
["22.씨름장 홀",null,null,null,{"$f":"VLOOKUP(A24,입력!B:B,1,FALSE)","v":"22.씨름장 홀"}]
["23.씨름장 계단실",null,null,null,{"$f":"VLOOKUP(A25,입력!B:B,1,FALSE)","v":"23.씨름장 계단실"}]
["24.씨름장 화장실",null,null,null,{"$f":"VLOOKUP(A26,입력!B:B,1,FALSE)","v":"24.씨름장 화장실"}]
["25.씨름부 숙소",null,null,null,{"$f":"VLOOKUP(A27,입력!B:B,1,FALSE)","v":"25.씨름부 숙소"}]
["26.생활체육실",null,null,null,{"$f":"VLOOKUP(A28,입력!B:B,1,FALSE)","v":"26.생활체육실"}]
["▶▶수위실동"]
["27.수위실",null,null,null,{"$f":"VLOOKUP(A30,입력!B:B,1,FALSE)","v":"27.수위실"}]
["▶▶소강당동"]
["28.소강당",null,null,null,{"$f":"VLOOKUP(A32,입력!B:B,1,FALSE)","v":"28.소강당"}]
["29.중 진로활동실",null,null,null,{"$f":"VLOOKUP(A33,입력!B:B,1,FALSE)","v":"29.중 진로활동실"}]
["30.중 가사실",null,null,null,{"$f":"VLOOKUP(A34,입력!B:B,1,FALSE)","v":"30.중 가사실"}]
["31.소강당 2층 복도",null,null,null,{"$f":"VLOOKUP(A35,입력!B:B,1,FALSE)","v":"31.소강당 2층 복도"}]
["32.중 멀티실",null,null,null,{"$f":"VLOOKUP(A36,입력!B:B,1,FALSE)","v":"32.중 멀티실"}]
["33.중 음악실",null,null,null,{"$f":"VLOOKUP(A37,입력!B:B,1,FALSE)","v":"33.중 음악실"}]
["34.소강당 3층 계단실",null,null,null,{"$f":"VLOOKUP(A38,입력!B:B,1,FALSE)","v":"34.소강당 3층 계단실"}]
["▶▶사열대 및 조례대"]
["35.사열대(운동장)",null,null,null,{"$f":"VLOOKUP(A40,입력!B:B,1,FALSE)","v":"35.사열대(운동장)"}]
["▶▶문서창고동"]
["36.문서창고",null,null,null,{"$f":"VLOOKUP(A42,입력!B:B,1,FALSE)","v":"36.문서창고"}]
["37.공구창고",null,null,null,{"$f":"VLOOKUP(A43,입력!B:B,1,FALSE)","v":"37.공구창고"}]
["38.비품창고",null,null,null,{"$f":"VLOOKUP(A44,입력!B:B,1,FALSE)","v":"38.비품창고"}]
["▶▶도서관동"]
["39.월파도서관",null,null,null,{"$f":"VLOOKUP(A46,입력!B:B,1,FALSE)","v":"39.월파도서관"}]
["40.도서관 1층 복도",null,null,null,{"$f":"VLOOKUP(A47,입력!B:B,1,FALSE)","v":"40.도서관 1층 복도"}]
["41.장애인화장실(여)",null,null,null,{"$f":"VLOOKUP(A48,입력!B:B,1,FALSE)","v":"41.장애인화장실(여)"}]
["42.장애인화장실(남)",null,null,null,{"$f":"VLOOKUP(A49,입력!B:B,1,FALSE)","v":"42.장애인화장실(남)"}]
["43.도서관 1층 화장실(남)",null,null,null,{"$f":"VLOOKUP(A50,입력!B:B,1,FALSE)","v":"43.도서관 1층 화장실(남)"}]
["44.도서관 1층 화장실(여)",null,null,null,{"$f":"VLOOKUP(A51,입력!B:B,1,FALSE)","v":"44.도서관 1층 화장실(여)"}]
["45.도서관 1층 1/2",null,null,null,{"$f":"VLOOKUP(A52,입력!B:B,1,FALSE)","v":"45.도서관 1층 1/2"}]
["46.1학년 교무실",null,null,null,{"$f":"VLOOKUP(A53,입력!B:B,1,FALSE)","v":"46.1학년 교무실"}]
["47.1학년 1반",null,null,null,{"$f":"VLOOKUP(A54,입력!B:B,1,FALSE)","v":"47.1학년 1반"}]
["48.1학년 7반",null,null,null,{"$f":"VLOOKUP(A55,입력!B:B,1,FALSE)","v":"48.1학년 7반"}]
["49.도서관 2층 복도",null,null,null,{"$f":"VLOOKUP(A56,입력!B:B,1,FALSE)","v":"49.도서관 2층 복도"}]
["50.도서관 2층 화장실(여)",null,null,null,{"$f":"VLOOKUP(A57,입력!B:B,1,FALSE)","v":"50.도서관 2층 화장실(여)"}]
["51.도서관 2층 화장실(남)",null,null,null,{"$f":"VLOOKUP(A58,입력!B:B,1,FALSE)","v":"51.도서관 2층 화장실(남)"}]
["52.도서관 2층 2/3",null,null,null,{"$f":"VLOOKUP(A59,입력!B:B,1,FALSE)","v":"52.도서관 2층 2/3"}]
["53.1학년 4반",null,null,null,{"$f":"VLOOKUP(A60,입력!B:B,1,FALSE)","v":"53.1학년 4반"}]
["54.1학년 2반",null,null,null,{"$f":"VLOOKUP(A61,입력!B:B,1,FALSE)","v":"54.1학년 2반"}]
["55.1학년 3반",null,null,null,{"$f":"VLOOKUP(A62,입력!B:B,1,FALSE)","v":"55.1학년 3반"}]
["56.도서관 3층 복도",null,null,null,{"$f":"VLOOKUP(A63,입력!B:B,1,FALSE)","v":"56.도서관 3층 복도"}]
["57.도서관 3층 화장실(여)",null,null,null,{"$f":"VLOOKUP(A64,입력!B:B,1,FALSE)","v":"57.도서관 3층 화장실(여)"}]
["58.도서관 3층 화장실(남)",null,null,null,{"$f":"VLOOKUP(A65,입력!B:B,1,FALSE)","v":"58.도서관 3층 화장실(남)"}]
["59.도서관 3층 3/4",null,null,null,{"$f":"VLOOKUP(A66,입력!B:B,1,FALSE)","v":"59.도서관 3층 3/4"}]
["60.1학년 5반",null,null,null,{"$f":"VLOOKUP(A67,입력!B:B,1,FALSE)","v":"60.1학년 5반"}]
["61.1학년 8반",null,null,null,{"$f":"VLOOKUP(A68,입력!B:B,1,FALSE)","v":"61.1학년 8반"}]
["62.1학년 6반",null,null,null,{"$f":"VLOOKUP(A69,입력!B:B,1,FALSE)","v":"62.1학년 6반"}]
["63.도서관 4층 복도",null,null,null,{"$f":"VLOOKUP(A70,입력!B:B,1,FALSE)","v":"63.도서관 4층 복도"}]
["64.도서관 4층 화장실(여)",null,null,null,{"$f":"VLOOKUP(A71,입력!B:B,1,FALSE)","v":"64.도서관 4층 화장실(여)"}]
["65.도서관 4층 화장실(남)",null,null,null,{"$f":"VLOOKUP(A72,입력!B:B,1,FALSE)","v":"65.도서관 4층 화장실(남)"}]
["66.도서관 4층 4/옥상",null,null,null,{"$f":"VLOOKUP(A73,입력!B:B,1,FALSE)","v":"66.도서관 4층 4/옥상"}]
["▶▶식당동"]
["67.조리실",null,null,null,{"$f":"VLOOKUP(A75,입력!B:B,1,FALSE)","v":"67.조리실"}]
["68.급식실",null,null,null,{"$f":"VLOOKUP(A76,입력!B:B,1,FALSE)","v":"68.급식실"}]
["69.식당 1층 1/2",null,null,null,{"$f":"VLOOKUP(A77,입력!B:B,1,FALSE)","v":"69.식당 1층 1/2"}]
["70.식당 1층 복도",null,null,null,{"$f":"VLOOKUP(A78,입력!B:B,1,FALSE)","v":"70.식당 1층 복도"}]
["71.사감실",null,null,null,{"$f":"VLOOKUP(A79,입력!B:B,1,FALSE)","v":"71.사감실"}]
["72.201호",null,null,null,{"$f":"VLOOKUP(A80,입력!B:B,1,FALSE)","v":"72.201호"}]
["73.202호",null,null,null,{"$f":"VLOOKUP(A81,입력!B:B,1,FALSE)","v":"73.202호"}]
["74.203호",null,null,null,{"$f":"VLOOKUP(A82,입력!B:B,1,FALSE)","v":"74.203호"}]
["75.204호",null,null,null,{"$f":"VLOOKUP(A83,입력!B:B,1,FALSE)","v":"75.204호"}]
["76.205호",null,null,null,{"$f":"VLOOKUP(A84,입력!B:B,1,FALSE)","v":"76.205호"}]
["77.206호",null,null,null,{"$f":"VLOOKUP(A85,입력!B:B,1,FALSE)","v":"77.206호"}]
["78.207호",null,null,null,{"$f":"VLOOKUP(A86,입력!B:B,1,FALSE)","v":"78.207호"}]
["79.208호",null,null,null,{"$f":"VLOOKUP(A87,입력!B:B,1,FALSE)","v":"79.208호"}]
["80.209호",null,null,null,{"$f":"VLOOKUP(A88,입력!B:B,1,FALSE)","v":"80.209호"}]
["81.식당 2층 화장실",null,null,null,{"$f":"VLOOKUP(A89,입력!B:B,1,FALSE)","v":"81.식당 2층 화장실"}]
["82.식당 2층 복도",null,null,null,{"$f":"VLOOKUP(A90,입력!B:B,1,FALSE)","v":"82.식당 2층 복도"}]
["83.식당 2층 2/3",null,null,null,{"$f":"VLOOKUP(A91,입력!B:B,1,FALSE)","v":"83.식당 2층 2/3"}]
["84.301호",null,null,null,{"$f":"VLOOKUP(A92,입력!B:B,1,FALSE)","v":"84.301호"}]
["85.302호",null,null,null,{"$f":"VLOOKUP(A93,입력!B:B,1,FALSE)","v":"85.302호"}]
["86.303호",null,null,null,{"$f":"VLOOKUP(A94,입력!B:B,1,FALSE)","v":"86.303호"}]
["87.304호",null,null,null,{"$f":"VLOOKUP(A95,입력!B:B,1,FALSE)","v":"87.304호"}]
["88.305호",null,null,null,{"$f":"VLOOKUP(A96,입력!B:B,1,FALSE)","v":"88.305호"}]
["89.306호",null,null,null,{"$f":"VLOOKUP(A97,입력!B:B,1,FALSE)","v":"89.306호"}]
["90.307호",null,null,null,{"$f":"VLOOKUP(A98,입력!B:B,1,FALSE)","v":"90.307호"}]
["91.308호",null,null,null,{"$f":"VLOOKUP(A99,입력!B:B,1,FALSE)","v":"91.308호"}]
["92.309호",null,null,null,{"$f":"VLOOKUP(A100,입력!B:B,1,FALSE)","v":"92.309호"}]
["93.310호",null,null,null,{"$f":"VLOOKUP(A101,입력!B:B,1,FALSE)","v":"93.310호"}]
["94.식당 3층 화장실",null,null,null,{"$f":"VLOOKUP(A102,입력!B:B,1,FALSE)","v":"94.식당 3층 화장실"}]
["95.식당 3층 복도",null,null,null,{"$f":"VLOOKUP(A103,입력!B:B,1,FALSE)","v":"95.식당 3층 복도"}]
["96.식당 3층 3/옥상",null,null,null,{"$f":"VLOOKUP(A104,입력!B:B,1,FALSE)","v":"96.식당 3층 3/옥상"}]
["▶▶관리실동"]
["97.중 특수학급",null,null,null,{"$f":"VLOOKUP(A106,입력!B:B,1,FALSE)","v":"97.중 특수학급"}]
["98.관리실",null,null,null,{"$f":"VLOOKUP(A107,입력!B:B,1,FALSE)","v":"98.관리실"}]
["99.중 음악실",null,null,null,{"$f":"VLOOKUP(A108,입력!B:B,1,FALSE)","v":"99.중 음악실"}]
["100.관리실 복도"]
["▶▶후관동"]
["101.수학실2",null,null,null,{"$f":"VLOOKUP(A111,입력!B:B,1,FALSE)","v":"101.수학실2"}]
["102.미술실",null,null,null,{"$f":"VLOOKUP(A112,입력!B:B,1,FALSE)","v":"102.미술실"}]
["103.보건실",null,null,null,{"$f":"VLOOKUP(A113,입력!B:B,1,FALSE)","v":"103.보건실"}]
["104.위클래스실",null,null,null,{"$f":"VLOOKUP(A114,입력!B:B,1,FALSE)","v":"104.위클래스실"}]
["105.수학실1",null,null,null,{"$f":"VLOOKUP(A115,입력!B:B,1,FALSE)","v":"105.수학실1"}]
["106.영어실3",null,null,null,{"$f":"VLOOKUP(A116,입력!B:B,1,FALSE)","v":"106.영어실3"}]
["107.숙직실",null,null,null,{"$f":"VLOOKUP(A117,입력!B:B,1,FALSE)","v":"107.숙직실"}]
["108.후관 1층 복도",null,null,null,{"$f":"VLOOKUP(A118,입력!B:B,1,FALSE)","v":"108.후관 1층 복도"}]
["109.후관 1층 1/2",null,null,null,{"$f":"VLOOKUP(A119,입력!B:B,1,FALSE)","v":"109.후관 1층 1/2"}]
["110.후관 1층 화장실(남)",null,null,null,{"$f":"VLOOKUP(A120,입력!B:B,1,FALSE)","v":"110.후관 1층 화장실(남)"}]
["111.후관 1층 화장실(여)",null,null,null,{"$f":"VLOOKUP(A121,입력!B:B,1,FALSE)","v":"111.후관 1층 화장실(여)"}]
["112.후관 1층 화장실(여)2",null,null,null,{"$f":"VLOOKUP(A122,입력!B:B,1,FALSE)","v":"112.후관 1층 화장실(여)2"}]
["113.3학년 10반",null,null,null,{"$f":"VLOOKUP(A123,입력!B:B,1,FALSE)","v":"113.3학년 10반"}]
["114.3학년 9반",null,null,null,{"$f":"VLOOKUP(A124,입력!B:B,1,FALSE)","v":"114.3학년 9반"}]
["115.3학년 8반",null,null,null,{"$f":"VLOOKUP(A125,입력!B:B,1,FALSE)","v":"115.3학년 8반"}]
["116.3학년 7반",null,null,null,{"$f":"VLOOKUP(A126,입력!B:B,1,FALSE)","v":"116.3학년 7반"}]
["117.3학년 6반",null,null,null,{"$f":"VLOOKUP(A127,입력!B:B,1,FALSE)","v":"117.3학년 6반"}]
["118.수학실3",null,null,null,{"$f":"VLOOKUP(A128,입력!B:B,1,FALSE)","v":"118.수학실3"}]
["119.입시관리부",null,null,null,{"$f":"VLOOKUP(A129,입력!B:B,1,FALSE)","v":"119.입시관리부"}]
["120.후관 2층 복도",null,null,null,{"$f":"VLOOKUP(A130,입력!B:B,1,FALSE)","v":"120.후관 2층 복도"}]
["121.후관 2층 2/옥상",null,null,null,{"$f":"VLOOKUP(A131,입력!B:B,1,FALSE)","v":"121.후관 2층 2/옥상"}]
["122.후관 2층 화장실(남)",null,null,null,{"$f":"VLOOKUP(A132,입력!B:B,1,FALSE)","v":"122.후관 2층 화장실(남)"}]
["123.후관 2층 화장실(여)",null,null,null,{"$f":"VLOOKUP(A133,입력!B:B,1,FALSE)","v":"123.후관 2층 화장실(여)"}]
["124.후관 2층 화장실(여)2",null,null,null,{"$f":"VLOOKUP(A134,입력!B:B,1,FALSE)","v":"124.후관 2층 화장실(여)2"}]
["125.인쇄실",null,null,null,{"$f":"VLOOKUP(A135,입력!B:B,1,FALSE)","v":"125.인쇄실"}]
["126.미술도구준비실",null,null,null,{"$f":"VLOOKUP(A136,입력!B:B,1,FALSE)","v":"126.미술도구준비실"}]
["▶▶별관동"]
["127.남학생월파반",null,null,null,{"$f":"VLOOKUP(A138,입력!B:B,1,FALSE)","v":"127.남학생월파반"}]
["128.별관 1층 복도",null,null,null,{"$f":"VLOOKUP(A139,입력!B:B,1,FALSE)","v":"128.별관 1층 복도"}]
["129.별관 1층 1/2",null,null,null,{"$f":"VLOOKUP(A140,입력!B:B,1,FALSE)","v":"129.별관 1층 1/2"}]
["130.3학년 교무실",null,null,null,{"$f":"VLOOKUP(A141,입력!B:B,1,FALSE)","v":"130.3학년 교무실"}]
["131.3학년 2반",null,null,null,{"$f":"VLOOKUP(A142,입력!B:B,1,FALSE)","v":"131.3학년 2반"}]
["132.3학년 1반",null,null,null,{"$f":"VLOOKUP(A143,입력!B:B,1,FALSE)","v":"132.3학년 1반"}]
["133.별관 2층 복도",null,null,null,{"$f":"VLOOKUP(A144,입력!B:B,1,FALSE)","v":"133.별관 2층 복도"}]
["134.별관 2층 2/3",null,null,null,{"$f":"VLOOKUP(A145,입력!B:B,1,FALSE)","v":"134.별관 2층 2/3"}]
["135.3학년 5반",null,null,null,{"$f":"VLOOKUP(A146,입력!B:B,1,FALSE)","v":"135.3학년 5반"}]
["136.3학년 4반",null,null,null,{"$f":"VLOOKUP(A147,입력!B:B,1,FALSE)","v":"136.3학년 4반"}]
["137.3학년 3반",null,null,null,{"$f":"VLOOKUP(A148,입력!B:B,1,FALSE)","v":"137.3학년 3반"}]
["138.별관 3층 복도",null,null,null,{"$f":"VLOOKUP(A149,입력!B:B,1,FALSE)","v":"138.별관 3층 복도"}]
["139.방송실",null,null,null,{"$f":"VLOOKUP(A150,입력!B:B,1,FALSE)","v":"139.방송실"}]
["▶▶본관동"]
["140.본교무실",null,null,null,{"$f":"VLOOKUP(A152,입력!B:B,1,FALSE)","v":"140.본교무실"}]
["141.1학년 10반",null,null,null,{"$f":"VLOOKUP(A153,입력!B:B,1,FALSE)","v":"141.1학년 10반"}]
["142.1학년 9반",null,null,null,{"$f":"VLOOKUP(A154,입력!B:B,1,FALSE)","v":"142.1학년 9반"}]
["143.과학실1(화학)",null,null,null,{"$f":"VLOOKUP(A155,입력!B:B,1,FALSE)","v":"143.과학실1(화학)"}]
["144.본관 1층 복도",null,null,null,{"$f":"VLOOKUP(A156,입력!B:B,1,FALSE)","v":"144.본관 1층 복도"}]
["145.본관 1층 1/2",null,null,null,{"$f":"VLOOKUP(A157,입력!B:B,1,FALSE)","v":"145.본관 1층 1/2"}]
["146.본관 1층 화장실(여)",null,null,null,{"$f":"VLOOKUP(A158,입력!B:B,1,FALSE)","v":"146.본관 1층 화장실(여)"}]
["147.보관 1층 화장실(남)",null,null,null,{"$f":"VLOOKUP(A159,입력!B:B,1,FALSE)","v":"147.보관 1층 화장실(남)"}]
["148.2학년 8반",null,null,null,{"$f":"VLOOKUP(A160,입력!B:B,1,FALSE)","v":"148.2학년 8반"}]
["149.2학년 9반",null,null,null,{"$f":"VLOOKUP(A161,입력!B:B,1,FALSE)","v":"149.2학년 9반"}]
["150.2학년 10반",null,null,null,{"$f":"VLOOKUP(A162,입력!B:B,1,FALSE)","v":"150.2학년 10반"}]
["151.영어실2",null,null,null,{"$f":"VLOOKUP(A163,입력!B:B,1,FALSE)","v":"151.영어실2"}]
["152.과학실2(물리/지구)",null,null,null,{"$f":"VLOOKUP(A164,입력!B:B,1,FALSE)","v":"152.과학실2(물리/지구)"}]
["153.본관 2층 복도",null,null,null,{"$f":"VLOOKUP(A165,입력!B:B,1,FALSE)","v":"153.본관 2층 복도"}]
["154.본관 2층 2/3",null,null,null,{"$f":"VLOOKUP(A166,입력!B:B,1,FALSE)","v":"154.본관 2층 2/3"}]
["155.본관 2층 화장실(여)",null,null,null,{"$f":"VLOOKUP(A167,입력!B:B,1,FALSE)","v":"155.본관 2층 화장실(여)"}]
["156.본관 2층 화장실(남)",null,null,null,{"$f":"VLOOKUP(A168,입력!B:B,1,FALSE)","v":"156.본관 2층 화장실(남)"}]
["157.2학년 7반",null,null,null,{"$f":"VLOOKUP(A169,입력!B:B,1,FALSE)","v":"157.2학년 7반"}]
["158.2학년 6반",null,null,null,{"$f":"VLOOKUP(A170,입력!B:B,1,FALSE)","v":"158.2학년 6반"}]
["159.2학년 5반",null,null,null,{"$f":"VLOOKUP(A171,입력!B:B,1,FALSE)","v":"159.2학년 5반"}]
["160.2학년 4반",null,null,null,{"$f":"VLOOKUP(A172,입력!B:B,1,FALSE)","v":"160.2학년 4반"}]
["161.과학실3(생물)",null,null,null,{"$f":"VLOOKUP(A173,입력!B:B,1,FALSE)","v":"161.과학실3(생물)"}]
["162.본관 3층 복도",null,null,null,{"$f":"VLOOKUP(A174,입력!B:B,1,FALSE)","v":"162.본관 3층 복도"}]
["163.본관 3층 3/4",null,null,null,{"$f":"VLOOKUP(A175,입력!B:B,1,FALSE)","v":"163.본관 3층 3/4"}]
["164.본관 3층 화장실(여)",null,null,null,{"$f":"VLOOKUP(A176,입력!B:B,1,FALSE)","v":"164.본관 3층 화장실(여)"}]
["165.본관 3층 화장실(남)",null,null,null,{"$f":"VLOOKUP(A177,입력!B:B,1,FALSE)","v":"165.본관 3층 화장실(남)"}]
["166.2학년 교무실",null,null,null,{"$f":"VLOOKUP(A178,입력!B:B,1,FALSE)","v":"166.2학년 교무실"}]
["167.2학년 1반",null,null,null,{"$f":"VLOOKUP(A179,입력!B:B,1,FALSE)","v":"167.2학년 1반"}]
["168.2학년 2반",null,null,null,{"$f":"VLOOKUP(A180,입력!B:B,1,FALSE)","v":"168.2학년 2반"}]
["169.2학년 3반",null,null,null,{"$f":"VLOOKUP(A181,입력!B:B,1,FALSE)","v":"169.2학년 3반"}]
["170.영어실1",null,null,null,{"$f":"VLOOKUP(A182,입력!B:B,1,FALSE)","v":"170.영어실1"}]
["171.본관 4층 복도",null,null,null,{"$f":"VLOOKUP(A183,입력!B:B,1,FALSE)","v":"171.본관 4층 복도"}]
["172.본관 4층 4/옥상",null,null,null,{"$f":"VLOOKUP(A184,입력!B:B,1,FALSE)","v":"172.본관 4층 4/옥상"}]
["173.본관 4층 화장실(여)",null,null,null,{"$f":"VLOOKUP(A185,입력!B:B,1,FALSE)","v":"173.본관 4층 화장실(여)"}]
["174.본관 4층 화장실(남)",null,null,null,{"$f":"VLOOKUP(A186,입력!B:B,1,FALSE)","v":"174.본관 4층 화장실(남)"}]